[Event "Snabb-SM för veteraner, 65+ 2019"]
[Site "Schackcentrum, Vegagatan 20, Gothenburg, Sweden"]
[Date "2019.10.05"]
[Round "6.2"]
[White "Green, Per"]
[Black "Dolata, Henryk"]
[Result "1/2-1/2"]
[TimeControl "15 minutes + 10 seconds per move from move one"]
[WhiteFideId "1703811"]
[BlackFideId "1709046"]
[WhiteElo "1923"]
[BlackElo "2064"]

1. Nf3 {[%clk 00:15:14]} {[%emt 00:00:05]} Nf6 {[%clk 00:15:19]} {[%emt
00:00:02]} 2. c4 {[%clk 00:15:23]} {[%emt 00:00:01]} e6 {[%clk 00:15:28]}
{[%emt 00:00:01]} 3. g3 {[%clk 00:15:31]} {[%emt 00:00:02]} d5 {[%clk
00:15:37]} 4. Bg2 {[%clk 00:15:40]} {[%emt 00:00:02]} Be7 {[%clk 00:15:46]} 5.
O-O {[%clk 00:15:46]} {[%emt 00:00:05]} O-O {[%clk 00:15:54]} {[%emt 00:00:02]}
6. b3 {[%clk 00:15:54]} {[%emt 00:00:02]} b6 {[%clk 00:15:59]} {[%emt
00:00:05]} 7. Bb2 {[%clk 00:15:55]} {[%emt 00:00:08]} Bb7 {[%clk 00:16:07]}
{[%emt 00:00:02]} 8. e3 {[%clk 00:15:38]} {[%emt 00:00:27]} Nbd7 {[%clk
00:16:11]} {[%emt 00:00:06]} 9. Nc3 {[%clk 00:15:23]} {[%emt 00:00:26]} c5
{[%clk 00:16:09]} {[%emt 00:00:11]} 10. Qe2 {[%clk 00:15:31]} {[%emt 00:00:02]}
Rc8 {[%clk 00:15:56]} {[%emt 00:00:23]} 11. Rfd1 {[%clk 00:14:08]} {[%emt
00:01:34]} Qc7 {[%clk 00:16:03]} {[%emt 00:00:03]} 12. Rac1 {[%clk 00:13:30]}
{[%emt 00:00:48]} Rfd8 {[%clk 00:16:05]} {[%emt 00:00:08]} 13. cxd5 {[%clk
00:13:38]} {[%emt 00:00:03]} Nxd5 {[%clk 00:16:01]} {[%emt 00:00:14]} 14. d4
{[%clk 00:13:11]} {[%emt 00:00:36]} Qb8 {[%clk 00:16:06]} {[%emt 00:00:06]} 15.
Ne1 {[%clk 00:11:49]} {[%emt 00:01:33]} Nxc3 {[%clk 00:10:55]} {[%emt
00:05:21]} 16. Bxc3 {[%clk 00:11:54]} {[%emt 00:00:04]} Bxg2 {[%clk 00:09:04]}
{[%emt 00:02:02]} 17. Nxg2 {[%clk 00:11:25]} {[%emt 00:00:39]} Qb7 {[%clk
00:09:05]} {[%emt 00:00:09]} 18. dxc5 {[%clk 00:10:20]} {[%emt 00:01:15]} Nxc5
{[%clk 00:09:07]} {[%emt 00:00:09]} 19. Qg4 {[%clk 00:09:40]} {[%emt 00:00:48]}
Bf8 {[%clk 00:08:41]} {[%emt 00:00:37]} 20. Rxd8 {[%clk 00:08:40]} {[%emt
00:01:10]} Rxd8 {[%clk 00:08:50]} {[%emt 00:00:01]} 21. Nf4 {[%clk 00:08:37]}
{[%emt 00:00:12]} Qe4 {[%clk 00:08:20]} {[%emt 00:00:40]} 22. Qh4 {[%clk
00:07:38]} {[%emt 00:01:09]} Rd7 {[%clk 00:06:40]} {[%emt 00:01:50]} 23. Qg5
{[%clk 00:06:38]} {[%emt 00:01:09]} h6 {[%clk 00:06:10]} {[%emt 00:00:41]} 24.
Qh5 {[%clk 00:06:31]} {[%emt 00:00:17]} Nd3 {[%clk 00:05:03]} {[%emt 00:01:17]}
25. Nxd3 {[%clk 00:06:16]} {[%emt 00:00:25]} Qxd3 {[%clk 00:05:04]} {[%emt
00:00:09]} 26. Bd4 {[%clk 00:05:56]} {[%emt 00:00:30]} Qa6 {[%clk 00:04:19]}
{[%emt 00:00:55]} 27. a4 {[%clk 00:05:35]} {[%emt 00:00:32]} Qb7 {[%clk
00:04:19]} {[%emt 00:00:10]} 28. Qg4 {[%clk 00:05:32]} {[%emt 00:00:13]} Rc7
{[%clk 00:04:07]} {[%emt 00:00:21]} 29. Qd1 {[%clk 00:05:25]} {[%emt 00:00:17]}
Rxc1 {[%clk 00:04:05]} {[%emt 00:00:12]} 30. Qxc1 {[%clk 00:05:34]} {[%emt
00:00:01]} Qd5 {[%clk 00:03:46]} {[%emt 00:00:29]} 31. Qc2 {[%clk 00:05:40]}
{[%emt 00:00:03]} Qb7 {[%clk 00:03:47]} {[%emt 00:00:09]} 32. h3 {[%clk
00:05:26]} {[%emt 00:00:24]} a6 {[%clk 00:03:56]} {[%emt 00:00:03]} 33. Qc3
{[%clk 00:04:35]} {[%emt 00:01:00]} b5 {[%clk 00:03:59]} {[%emt 00:00:07]} 34.
axb5 {[%clk 00:04:31]} {[%emt 00:00:14]} axb5 {[%clk 00:04:08]} {[%emt
00:00:01]} 35. b4 {[%clk 00:04:12]} {[%emt 00:00:29]} f6 {[%clk 00:03:29]}
{[%emt 00:00:48]} 36. Bc5 {[%clk 00:04:09]} {[%emt 00:00:13]} Qc6 {[%clk
00:03:22]} {[%emt 00:00:15]} 37. Qd4 {[%clk 00:04:05]} {[%emt 00:00:17]} Bxc5
{[%clk 00:02:28]} {[%emt 00:01:04]} 38. bxc5 {[%clk 00:03:52]} {[%emt
00:00:23]} Kf7 {[%clk 00:02:30]} {[%emt 00:00:08]} 39. Qb4 {[%clk 00:03:25]}
{[%emt 00:00:37]} Ke7 {[%clk 00:02:07]} {[%emt 00:00:33]} 40. h4 {[%clk
00:02:30]} {[%emt 00:01:13]} Kd7 {[%clk 00:02:09]} 41. Kf1 {[%clk 00:02:34]}
{[%emt 00:00:06]} Qa6 {[%clk 00:02:10]} {[%emt 00:00:11]} 42. Qd4+ {[%clk
00:02:29]} {[%emt 00:00:14]} Ke8 {[%clk 00:02:09]} {[%emt 00:00:10]} 43. Kg2
{[%clk 00:02:00]} {[%emt 00:00:40]} Qb7+ {[%clk 00:01:49]} {[%emt 00:00:30]} 44.
f3 {[%clk 00:01:55]} {[%emt 00:00:14]} b4 {[%clk 00:01:46]} {[%emt 00:00:13]}
45. Qc4 {[%clk 00:01:52]} {[%emt 00:00:13]} b3 {[%clk 00:00:14]} {[%emt
00:01:42]} 46. c6 {[%clk 00:01:31]} {[%emt 00:00:31]} Qc7 {[%clk 00:00:21]}
{[%emt 00:00:04]} 47. Qxe6+ {[%clk 00:01:37]} {[%emt 00:00:05]} Kf8 {[%clk
00:00:30]} 48. Qxb3 {[%clk 00:01:40]} {[%emt 00:00:06]} Qxc6 {[%clk 00:00:39]}
{[%emt 00:00:01]} 49. Qd3 {[%clk 00:01:45]} {[%emt 00:00:05]} Kg8 {[%clk
00:00:38]} {[%emt 00:00:11]} 50. e4 {[%clk 00:01:50]} {[%emt 00:00:05]} Qa4
{[%clk 00:00:43]} {[%emt 00:00:05]} 51. Qd2 {[%clk 00:01:12]} {[%emt 00:00:48]}
Kh7 {[%clk 00:00:47]} {[%emt 00:00:07]} 52. Kh2 {[%clk 00:01:17]} {[%emt
00:00:05]} Qb5 {[%clk 00:00:52]} {[%emt 00:00:05]} 53. Qc2 {[%clk 00:01:12]}
{[%emt 00:00:15]} Kh8 {[%clk 00:00:41]} {[%emt 00:00:21]} 54. f4 {[%clk
00:01:15]} {[%emt 00:00:06]} Qd7 {[%clk 00:00:35]} {[%emt 00:00:16]} 55. Qe2
{[%clk 00:01:12]} {[%emt 00:00:13]} Qe6 {[%clk 00:00:32]} {[%emt 00:00:15]} 56.
Qc2 {[%clk 00:01:04]} {[%emt 00:00:19]} Qd7 {[%clk 00:00:35]} {[%emt 00:00:05]}
57. e5 {[%clk 00:01:02]} {[%emt 00:00:16]} fxe5 {[%clk 00:00:42]} 58. fxe5
{[%clk 00:01:10]} Qe6 {[%clk 00:00:49]} {[%emt 00:00:12]} 59. Qe2 {[%clk
00:01:16]} Kg8 {[%clk 00:00:53]} 60. Qe3 {[%clk 00:00:45]} {[%emt 00:00:41]}
Kf7 {[%clk 00:00:59]} {[%emt 00:00:05]} 61. Qa7+ {[%clk 00:00:48]} {[%emt
00:00:08]} Kg6 {[%clk 00:01:05]} {[%emt 00:00:02]} 62. Qe3 {[%clk 00:00:39]}
{[%emt 00:00:19]} Kf5 {[%clk 00:00:49]} {[%emt 00:00:25]} 63. Qf4+ {[%clk
00:00:47]} {[%emt 00:00:03]} Kg6 {[%clk 00:00:59]} 64. g4 {[%clk 00:00:52]}
{[%emt 00:00:06]} Qa2+ {[%clk 00:01:01]} {[%emt 00:00:08]} 65. Kg3 {[%clk
00:01:00]} {[%emt 00:00:02]} Kh7 {[%clk 00:00:55]} {[%emt 00:00:17]} 66. Qf5+
{[%clk 00:01:02]} {[%emt 00:00:08]} Kg8 {[%clk 00:01:02]} {[%emt 00:00:01]} 67.
e6 {[%clk 00:01:08]} {[%emt 00:00:05]} Qb3+ {[%clk 00:01:08]} {[%emt 00:00:04]}
68. Kf4 {[%clk 00:01:02]} {[%emt 00:00:15]} Qc4+ {[%clk 00:01:10]} {[%emt
00:00:09]} 69. Qe4 {[%clk 00:01:10]} {[%emt 00:00:02]} Qf1+ {[%clk 00:01:17]}
{[%emt 00:00:04]} 70. Ke5 {[%clk 00:01:08]} {[%emt 00:00:11]} Qf6+ {[%clk
00:01:22]} {[%emt 00:00:05]} 71. Kd5 {[%clk 00:01:10]} {[%emt 00:00:08]} Qd8+
{[%clk 00:01:23]} {[%emt 00:00:09]} 72. Kc4 {[%clk 00:01:09]} {[%emt 00:00:10]}
Qc7+ {[%clk 00:01:23]} {[%emt 00:00:11]} 73. Kd3 {[%clk 00:01:02]} {[%emt
00:00:16]} Qe7 {[%clk 00:01:27]} {[%emt 00:00:06]} 74. Qf5 {[%clk 00:00:30]}
{[%emt 00:00:43]} Qd6+ {[%clk 00:01:08]} {[%emt 00:00:29]} 75. Ke2 {[%clk
00:00:19]} {[%emt 00:00:20]} Qh2+ {[%clk 00:00:57]} {[%emt 00:00:22]} 76. Qf2
{[%clk 00:00:23]} {[%emt 00:00:06]} Qe5+ {[%clk 00:01:02]} {[%emt 00:00:04]} 77.
Qe3 {[%clk 00:00:30]} {[%emt 00:00:02]} Qb5+ {[%clk 00:00:57]} {[%emt
00:00:14]} 78. Kf2 {[%emt 00:00:10]} Qb2+ {[%clk 00:00:45]} {[%emt 00:00:21]}
79. Kg3 {[%clk 00:00:39]} {[%emt 00:00:04]} Qb8+ {[%clk 00:00:51]} {[%emt
00:00:04]} 80. Kf3 {[%clk 00:00:44]} {[%emt 00:00:06]} Qb7+ {[%clk 00:00:57]}
{[%emt 00:00:04]} 81. Kf4 {[%clk 00:00:49]} {[%emt 00:00:04]} Qe7 {[%clk
00:01:06]} {[%emt 00:00:02]} 82. Kf5 {[%clk 00:00:39]} {[%emt 00:00:19]} Qf6+
{[%clk 00:01:08]} {[%emt 00:00:08]} 83. Ke4 {[%clk 00:00:40]} {[%emt 00:00:08]}
Qxe6+ {[%clk 00:01:16]} {[%emt 00:00:04]} 84. Kf4 {[%clk 00:00:46]} {[%emt
00:00:03]} Qd6+ {[%clk 00:01:20]} {[%emt 00:00:06]} 85. Kf3 {[%clk 00:00:45]}
{[%emt 00:00:12]} Qd5+ {[%clk 00:01:11]} {[%emt 00:00:18]} 86. Kg3 {[%clk
00:00:48]} {[%emt 00:00:07]} Qd6+ {[%clk 00:01:14]} {[%emt 00:00:08]} 87. Kh3
{[%clk 00:00:54]} {[%emt 00:00:03]} Qd7 {[%clk 00:01:18]} {[%emt 00:00:06]} 88.
h5 {[%clk 00:00:59]} {[%emt 00:00:05]} Qf7 {[%clk 00:01:20]} {[%emt 00:00:08]}
89. Qd3 {[%clk 00:01:01]} {[%emt 00:00:09]} Qe7 {[%clk 00:01:21]} {[%emt
00:00:08]} 90. Qf3 {[%clk 00:01:07]} {[%emt 00:00:05]} Qe6 {[%clk 00:01:10]}
{[%emt 00:00:19]} 91. Qa8+ {[%clk 00:01:12]} {[%emt 00:00:08]} Kh7 {[%clk
00:01:18]} {[%emt 00:00:02]} 92. Qf3 {[%clk 00:01:18]} {[%emt 00:00:04]}
1/2-1/2

[Event "Snabb-SM för veteraner, 65+ 2019"]
[Site "Schackcentrum, Vegagatan 20, Gothenburg, Sweden"]
[Date "2019.10.05"]
[Round "6.3"]
[White "Nilsson, Weine"]
[Black "Wahlstrom, Lennart"]
[Result "0-1"]
[TimeControl "15 minutes + 10 seconds per move from move one"]
[WhiteFideId "1716727"]
[BlackFideId "1706829"]
[WhiteElo "1847"]
[BlackElo "2109"]

1. Nf3 {[%clk 00:15:15]} {[%emt 00:00:10]} d5 {[%clk 00:15:22]} {[%emt
00:00:02]} 2. g3 {[%clk 00:15:23]} {[%emt 00:00:02]} c5 {[%clk 00:15:31]}
{[%emt 00:00:02]} 3. Bg2 {[%clk 00:15:30]} {[%emt 00:00:03]} Nc6 {[%clk
00:15:40]} 4. d4 {[%clk 00:15:10]} {[%emt 00:00:31]} Nf6 {[%clk 00:15:47]}
{[%emt 00:00:02]} 5. O-O {[%clk 00:15:16]} {[%emt 00:00:04]} e6 {[%clk
00:15:56]} {[%emt 00:00:01]} 6. e3 {[%clk 00:15:00]} {[%emt 00:00:27]} Be7
{[%clk 00:15:32]} {[%emt 00:00:34]} 7. b3 {[%clk 00:15:08]} {[%emt 00:00:02]}
O-O {[%clk 00:15:36]} {[%emt 00:00:06]} 8. Bb2 {[%clk 00:15:00]} {[%emt
00:00:17]} Ne4 {[%clk 00:15:37]} {[%emt 00:00:08]} 9. Nbd2 {[%clk 00:14:45]}
{[%emt 00:00:25]} f5 {[%clk 00:11:27]} {[%emt 00:04:21]} 10. a4 {[%clk
00:13:45]} {[%emt 00:01:10]} b6 {[%clk 00:10:59]} {[%emt 00:00:37]} 11. Ne5
{[%clk 00:13:06]} {[%emt 00:00:49]} Nxe5 {[%clk 00:10:40]} {[%emt 00:00:30]} 12.
dxe5 {[%clk 00:13:12]} {[%emt 00:00:03]} Ba6 {[%clk 00:10:03]} {[%emt
00:00:47]} 13. Re1 {[%clk 00:12:45]} {[%emt 00:00:36]} Rc8 {[%clk 00:08:53]}
{[%emt 00:01:21]} 14. f4 {[%clk 00:11:58]} {[%emt 00:00:57]} Qc7 {[%clk
00:07:02]} {[%emt 00:02:01]} 15. Nxe4 {[%clk 00:11:35]} {[%emt 00:00:33]} dxe4
{[%clk 00:07:10]} {[%emt 00:00:02]} 16. c4 {[%clk 00:11:13]} {[%emt 00:00:32]}
Rfd8 {[%clk 00:07:16]} {[%emt 00:00:04]} 17. Qc2 {[%clk 00:11:10]} {[%emt
00:00:11]} Rd7 {[%clk 00:06:51]} {[%emt 00:00:36]} 18. Rad1 {[%clk 00:10:45]}
{[%emt 00:00:35]} Rcd8 {[%clk 00:06:57]} {[%emt 00:00:04]} 19. Bc3 {[%clk
00:10:06]} {[%emt 00:00:49]} Bb7 {[%clk 00:06:58]} {[%emt 00:00:09]} 20. Bf1
{[%clk 00:10:03]} {[%emt 00:00:13]} Bc6 {[%clk 00:06:42]} {[%emt 00:00:26]} 21.
Rxd7 {[%clk 00:10:02]} {[%emt 00:00:11]} Rxd7 {[%clk 00:04:02]} {[%emt
00:02:51]} 22. Be2 {[%clk 00:09:54]} {[%emt 00:00:17]} Qd8 {[%clk 00:03:54]}
{[%emt 00:00:18]} 23. Rd1 {[%clk 00:09:18]} {[%emt 00:00:46]} a6 {[%clk
00:03:46]} {[%emt 00:00:18]} 24. Rxd7 {[%clk 00:08:55]} {[%emt 00:00:33]} Qxd7
{[%clk 00:03:55]} {[%emt 00:00:01]} 25. Qd2 {[%clk 00:08:12]} {[%emt 00:00:50]}
Qe8 {[%clk 00:03:05]} {[%emt 00:01:02]} 26. Kg2 {[%clk 00:07:13]} {[%emt
00:01:09]} g5 {[%clk 00:02:38]} {[%emt 00:00:38]} 27. Qe1 {[%clk 00:06:22]}
{[%emt 00:00:57]} Qg6 {[%clk 00:02:35]} {[%emt 00:00:17]} 28. Kh1 {[%clk
00:05:40]} {[%emt 00:00:51]} Qh6 {[%clk 00:01:51]} {[%emt 00:00:56]} 29. a5
{[%clk 00:04:45]} {[%emt 00:01:05]} b5 {[%clk 00:00:54]} {[%emt 00:01:07]} 30.
cxb5 {[%clk 00:04:41]} {[%emt 00:00:14]} axb5 {[%clk 00:01:03]} {[%emt
00:00:01]} 31. a6 {[%clk 00:04:20]} {[%emt 00:00:32]} gxf4 {[%clk 00:00:50]}
{[%emt 00:00:22]} 32. gxf4 {[%clk 00:04:22]} {[%emt 00:00:08]} Qh3 {[%clk
00:00:36]} {[%emt 00:00:24]} 33. Qg3+ {[%clk 00:03:59]} {[%emt 00:00:33]} Qxg3
{[%clk 00:00:44]} {[%emt 00:00:02]} 34. hxg3 {[%clk 00:04:07]} {[%emt
00:00:01]} b4 {[%clk 00:00:40]} {[%emt 00:00:14]} 35. Bb2 {[%clk 00:03:41]}
{[%emt 00:00:36]} Bd8 {[%clk 00:00:43]} {[%emt 00:00:08]} 36. Bc4 {[%clk
00:03:32]} {[%emt 00:00:18]} Kf7 {[%clk 00:00:49]} {[%emt 00:00:04]} 37. Kg2
{[%clk 00:03:20]} {[%emt 00:00:21]} Bb6 {[%clk 00:00:52]} {[%emt 00:00:08]} 38.
Kh3 {[%clk 00:03:14]} {[%emt 00:00:15]} Bd5 {[%clk 00:00:48]} {[%emt 00:00:16]}
39. Bxd5 {[%clk 00:02:16]} {[%emt 00:01:08]} exd5 {[%clk 00:00:56]} {[%emt
00:00:02]} 40. e6+ {[%clk 00:02:25]} {[%emt 00:00:01]} Kxe6 {[%clk 00:00:52]}
{[%emt 00:00:14]} 41. Be5 {[%clk 00:02:34]} c4 {[%clk 00:00:40]} {[%emt
00:00:22]} 42. Bd4 {[%clk 00:01:46]} {[%emt 00:00:59]} c3 {[%clk 00:00:18]}
{[%emt 00:00:33]} 43. Bxb6 {[%clk 00:01:33]} {[%emt 00:00:21]} c2 {[%clk
00:00:27]} {[%emt 00:00:01]} 44. a7 {[%clk 00:01:33]} {[%emt 00:00:10]} c1=Q
{[%clk 00:00:34]} {[%emt 00:00:02]} 45. Kg2 {[%clk 00:01:27]} {[%emt 00:00:15]}
Qc6 {[%clk 00:00:36]} {[%emt 00:00:09]} 46. Bd4 {[%clk 00:01:33]} {[%emt
00:00:04]} Kd7 {[%clk 00:00:43]} {[%emt 00:00:03]} 47. Kh3 {[%clk 00:01:31]}
{[%emt 00:00:13]} Kc7 {[%clk 00:00:50]} {[%emt 00:00:03]} 48. Kg2 {[%clk
00:01:34]} {[%emt 00:00:06]} Kb7 {[%clk 00:00:58]} {[%emt 00:00:02]} 49. Kf2
{[%clk 00:01:43]} {[%emt 00:00:01]} Qc2+ {[%clk 00:01:07]} {[%emt 00:00:01]} 50.
Ke1 {[%emt 00:00:07]} 0-1

[Event "Snabb-SM för veteraner, 65+ 2019"]
[Site "Schackcentrum, Vegagatan 20, Gothenburg, Sweden"]
[Date "2019.10.05"]
[Round "6.4"]
[White "Andersson, Kaj"]
[Black "Kvarby, Anders"]
[Result "0-1"]
[TimeControl "15 minutes + 10 seconds per move from move one"]
[WhiteFideId "1709860"]
[BlackFideId "1746596"]
[WhiteElo "2083"]
[BlackElo "1887"]

1. e4 {[%clk 00:15:17]} {[%emt 00:00:02]} d5 {[%clk 00:15:17]} {[%emt
00:00:04]} 2. exd5 {[%clk 00:15:23]} {[%emt 00:00:06]} Qxd5 {[%clk 00:15:25]} 3.
Nc3 {[%clk 00:15:31]} {[%emt 00:00:02]} Qa5 {[%clk 00:15:34]} {[%emt 00:00:01]}
4. d4 {[%clk 00:15:37]} {[%emt 00:00:04]} Nf6 {[%emt 00:00:05]} 5. Bd3 {[%clk
00:15:24]} {[%emt 00:00:19]} Bg4 {[%clk 00:15:23]} {[%emt 00:00:30]} 6. Nge2
{[%clk 00:15:22]} {[%emt 00:00:12]} e6 {[%clk 00:15:06]} {[%emt 00:00:28]} 7.
O-O {[%clk 00:15:24]} {[%emt 00:00:07]} Be7 {[%clk 00:14:54]} {[%emt 00:00:22]}
8. h3 {[%clk 00:15:19]} {[%emt 00:00:15]} Bh5 {[%clk 00:15:03]} {[%emt
00:00:02]} 9. Bd2 {[%clk 00:14:20]} {[%emt 00:01:09]} c6 {[%clk 00:14:56]}
{[%emt 00:00:17]} 10. Ne4 {[%clk 00:13:32]} {[%emt 00:00:57]} Qd8 {[%clk
00:13:34]} {[%emt 00:01:33]} 11. c3 {[%clk 00:13:18]} {[%emt 00:00:23]} Nbd7
{[%clk 00:13:26]} {[%emt 00:00:18]} 12. Re1 {[%clk 00:13:09]} {[%emt 00:00:19]}
O-O {[%clk 00:13:17]} {[%emt 00:00:19]} 13. Qc2 {[%clk 00:12:54]} {[%emt
00:00:25]} Nxe4 {[%clk 00:12:17]} {[%emt 00:01:10]} 14. Bxe4 {[%clk 00:13:01]}
{[%emt 00:00:03]} Nf6 {[%clk 00:12:21]} {[%emt 00:00:07]} 15. Bd3 {[%clk
00:12:27]} {[%emt 00:00:43]} Bg6 {[%clk 00:12:28]} {[%emt 00:00:03]} 16. Bxg6
{[%clk 00:12:19]} {[%emt 00:00:18]} hxg6 {[%clk 00:12:36]} {[%emt 00:00:03]} 17.
Rad1 {[%clk 00:12:13]} {[%emt 00:00:16]} Qc7 {[%clk 00:12:26]} {[%emt
00:00:21]} 18. Ng3 {[%clk 00:11:45]} {[%emt 00:00:37]} Kh7 {[%clk 00:12:08]}
{[%emt 00:00:29]} 19. Bg5 {[%clk 00:11:20]} {[%emt 00:00:34]} Rh8 {[%clk
00:11:41]} {[%emt 00:00:37]} 20. Bxf6 {[%clk 00:10:43]} {[%emt 00:00:47]} gxf6
{[%clk 00:11:35]} {[%emt 00:00:16]} 21. Re3 {[%clk 00:10:18]} {[%emt 00:00:35]}
Kg7 {[%clk 00:11:31]} {[%emt 00:00:14]} 22. Rde1 {[%clk 00:09:37]} {[%emt
00:00:50]} Rh6 {[%clk 00:10:47]} {[%emt 00:00:54]} 23. c4 {[%clk 00:08:37]}
{[%emt 00:01:11]} f5 {[%clk 00:09:45]} {[%emt 00:01:12]} 24. Rf3 {[%clk
00:06:39]} {[%emt 00:02:08]} Rah8 {[%clk 00:09:34]} {[%emt 00:00:21]} 25. Qe2
{[%clk 00:06:23]} {[%emt 00:00:25]} Bf6 {[%clk 00:09:27]} {[%emt 00:00:18]} 26.
Qd3 {[%clk 00:05:27]} {[%emt 00:01:06]} Rd8 {[%clk 00:09:04]} {[%emt 00:00:33]}
27. Ne2 {[%clk 00:05:11]} {[%emt 00:00:26]} g5 {[%clk 00:08:34]} {[%emt
00:00:39]} 28. Rg3 {[%clk 00:04:40]} {[%emt 00:00:40]} Rdh8 {[%clk 00:08:19]}
{[%emt 00:00:26]} 29. f4 {[%clk 00:04:20]} {[%emt 00:00:30]} g4 {[%clk
00:08:02]} {[%emt 00:00:27]} 30. hxg4 {[%clk 00:03:51]} {[%emt 00:00:39]} Bh4
{[%clk 00:06:30]} {[%emt 00:01:42]} 31. gxf5+ {[%clk 00:03:24]} {[%emt
00:00:37]} Kf6 {[%clk 00:06:24]} {[%emt 00:00:16]} 32. fxe6 {[%clk 00:02:47]}
{[%emt 00:00:48]} fxe6 {[%clk 00:06:04]} {[%emt 00:00:30]} 33. d5 {[%clk
00:01:57]} {[%emt 00:01:00]} Bxg3 {[%clk 00:03:32]} {[%emt 00:02:42]} 34. Nxg3
{[%clk 00:02:05]} {[%emt 00:00:02]} cxd5 {[%clk 00:03:32]} {[%emt 00:00:11]} 35.
cxd5 {[%clk 00:02:00]} {[%emt 00:00:15]} Qc5+ {[%clk 00:03:19]} {[%emt
00:00:20]} 36. Kf1 {[%clk 00:01:27]} {[%emt 00:00:46]} Qxd5 {[%clk 00:03:08]}
{[%emt 00:00:21]} 37. Qc3+ {[%clk 00:01:17]} {[%emt 00:00:19]} Ke7 {[%clk
00:02:38]} {[%emt 00:00:41]} 38. Qc7+ {[%clk 00:01:22]} {[%emt 00:00:05]} Qd7
{[%clk 00:02:42]} {[%emt 00:00:14]} 39. Qc5+ {[%clk 00:01:17]} {[%emt
00:00:07]} Ke8 {[%clk 00:02:39]} {[%emt 00:00:13]} 40. f5 {[%clk 00:01:17]}
{[%emt 00:00:14]} Qd3+ {[%clk 00:02:37]} {[%emt 00:00:07]} 41. Kf2 {[%clk
00:01:17]} {[%emt 00:00:16]} Qd2+ {[%clk 00:02:32]} {[%emt 00:00:09]} 42. Re2
{[%clk 00:01:20]} {[%emt 00:00:07]} Qf4+ {[%clk 00:02:36]} {[%emt 00:00:07]} 43.
Kg1 {[%clk 00:01:08]} {[%emt 00:00:24]} Qxg3 {[%clk 00:02:30]} {[%emt
00:00:14]} 44. Qc8+ {[%clk 00:00:59]} {[%emt 00:00:20]} Ke7 {[%clk 00:01:20]}
{[%emt 00:01:18]} 45. Rxe6+ {[%clk 00:00:39]} {[%emt 00:00:33]} Rxe6 {[%clk
00:01:20]} {[%emt 00:00:08]} 46. Qxe6+ {[%clk 00:00:46]} {[%emt 00:00:02]} Kf8
{[%clk 00:01:27]} {[%emt 00:00:02]} 47. Qf6+ {[%clk 00:00:46]} {[%emt
00:00:10]} Kg8 {[%clk 00:01:33]} {[%emt 00:00:04]} 48. Qe6+ {[%clk 00:00:45]}
{[%emt 00:00:11]} Kh7 {[%emt 00:00:13]} 49. f6 {[%clk 00:00:20]} {[%emt
00:00:32]} Qg8 {[%clk 00:00:47]} {[%emt 00:00:47]} 50. f7 {[%clk 00:00:20]}
{[%emt 00:00:20]} Qg7 {[%clk 00:00:25]} {[%emt 00:00:35]} 51. Qh3+ {[%clk
00:00:23]} {[%emt 00:00:05]} Kg6 {[%clk 00:00:28]} {[%emt 00:00:06]} 52. Qe6+
{[%clk 00:00:30]} {[%emt 00:00:04]} Qf6 {[%clk 00:00:34]} {[%emt 00:00:05]} 53.
Qe4+ {[%clk 00:00:28]} {[%emt 00:00:14]} Kxf7 {[%clk 00:00:41]} 54. Qxb7+
{[%clk 00:00:36]} {[%emt 00:00:02]} Ke6 {[%clk 00:00:46]} {[%emt 00:00:59]} 55.
Qxa7 {[%clk 00:02:34]} {[%emt 00:00:18]} Qxb2 {[%clk 00:00:47]} {[%emt
00:00:06]} 56. Qe3+ {[%clk 00:02:06]} {[%emt 00:00:34]} Kd5 {[%clk 00:00:53]}
{[%emt 00:00:04]} 57. Qf3+ {[%clk 00:02:04]} {[%emt 00:00:12]} Kc4 {[%clk
00:00:59]} {[%emt 00:00:03]} 58. Qc6+ {[%clk 00:02:04]} {[%emt 00:00:10]} Kd3
{[%clk 00:01:06]} {[%emt 00:00:03]} 59. Qg6+ {[%clk 00:01:45]} {[%emt
00:00:28]} Kd2 {[%clk 00:01:13]} {[%emt 00:00:04]} 60. Qd6+ {[%clk 00:01:40]}
{[%emt 00:00:15]} Kc1 {[%clk 00:01:11]} {[%emt 00:00:09]} 61. Qd3 {[%clk
00:00:19]} {[%emt 00:01:34]} Qb6 {[%clk 00:01:12]} {[%emt 00:00:09]} 62. Kf1
{[%clk 00:00:24]} {[%emt 00:00:04]} Rf8 {[%clk 00:01:20]} {[%emt 00:00:02]} 63.
Ke1 {[%clk 00:00:28]} {[%emt 00:00:06]} Qf2 {[%emt 00:00:02]} 64. Kd2+ {[%emt
00:00:04]} 0-1